[Event "Titled Tuesday Blitz August 22 Early 2023"]
[White "Kovalev, Vladislav"]
[Black "Dehtiarov, Roman"]
[WhiteFideId "13504398"]
[BlackFideId "14186640"]
[WhiteElo "2921"]
[BlackElo "2723"]
[Result "1-0"]
[Round "10"]
[TimeControl "180+1"]
[Date "2023.08.22"]
[WhiteClock "0:00:05"]
[BlackClock "0:00:01"]
[Board "15"]

1. e4 {[%clk 0:03:00]}  e5 {[%clk 0:02:59]} 2. Nf3 {[%clk 0:03:01]}  Nc6 {[%clk 0:03:00]} 3. Bb5 {[%clk 0:03:01]}  a6 {[%clk 0:03:01]} 4. Ba4 {[%clk 0:03:02]}  Nf6 {[%clk 0:03:01]} 5. O-O {[%clk 0:03:02]}  Be7 {[%clk 0:03:01]} 6. d3 {[%clk 0:03:02]}  d6 {[%clk 0:03:00]} 7. c3 {[%clk 0:03:02]}  O-O {[%clk 0:03:01]} 8. Nbd2 {[%clk 0:03:02]}  Re8 {[%clk 0:03:01]} 9. Re1 {[%clk 0:03:02]}  Bf8 {[%clk 0:03:01]} 10. Nf1 {[%clk 0:03:03]}  b5 {[%clk 0:02:50]} 11. Bc2 {[%clk 0:03:03]}  g6 {[%clk 0:02:48]} 12. Bg5 {[%clk 0:03:00]}  h6 {[%clk 0:02:48]} 13. Bh4 {[%clk 0:02:57]}  Bg7 {[%clk 0:02:46]} 14. Ne3 {[%clk 0:02:57]}  Ne7 {[%clk 0:02:44]} 15. d4 {[%clk 0:02:51]}  exd4 {[%clk 0:02:42]} 16. cxd4 {[%clk 0:02:47]}  c5 {[%clk 0:02:23]} 17. dxc5 {[%clk 0:02:38]}  dxc5 {[%clk 0:02:24]} 18. Qxd8 {[%clk 0:02:39]}  Rxd8 {[%clk 0:02:14]} 19. e5 {[%clk 0:02:39]}  g5 {[%clk 0:02:11]} 20. Nxg5 {[%clk 0:01:56]}  hxg5 {[%clk 0:01:43]} 21. Bxg5 {[%clk 0:01:57]}  Nfd5 {[%clk 0:01:44]} 22. Nxd5 {[%clk 0:01:53]}  Rxd5 {[%clk 0:01:45]} 23. Bxe7 {[%clk 0:01:53]}  Rxe5 {[%clk 0:01:36]} 24. Rxe5 {[%clk 0:01:47]}  Bxe5 {[%clk 0:01:37]} 25. Bxc5 {[%clk 0:01:31]}  Bxb2 {[%clk 0:01:35]} 26. Rb1 {[%clk 0:01:28]}  Bf6 {[%clk 0:01:29]} 27. Be4 {[%clk 0:01:24]}  Rb8 {[%clk 0:01:27]} 28. Ba7 {[%clk 0:01:24]}  Bb7 {[%clk 0:01:14]} 29. Bxb8 {[%clk 0:01:17]}  Bxe4 {[%clk 0:01:14]} 30. Rd1 {[%clk 0:01:14]}  Bc3 {[%clk 0:00:56]} 31. Ba7 {[%clk 0:01:07]}  Bf5 {[%clk 0:00:51]} 32. Rd8+ {[%clk 0:01:05]}  Kh7 {[%clk 0:00:49]} 33. Bd4 {[%clk 0:01:04]}  Bb4 {[%clk 0:00:40]} 34. Ra8 {[%clk 0:00:39]}  a5 {[%clk 0:00:39]} 35. Rb8 {[%clk 0:00:34]}  Bd3 {[%clk 0:00:39]} 36. f3 {[%clk 0:00:28]}  Bc4 {[%clk 0:00:35]} 37. Kf2 {[%clk 0:00:26]}  a4 {[%clk 0:00:25]} 38. g4 {[%clk 0:00:21]}  Bd6 {[%clk 0:00:20]} 39. Rd8 {[%clk 0:00:07]}  Bf4 {[%clk 0:00:18]} 40. Rd7 {[%clk 0:00:06]}  Bxa2 {[%clk 0:00:15]} 41. Rb7 {[%clk 0:00:02]}  Bc4 {[%clk 0:00:14]} 42. h4 {[%clk 0:00:03]}  a3 {[%clk 0:00:13]} 43. h5 {[%clk 0:00:03]}  a2 {[%clk 0:00:13]} 44. Rb8 {[%clk 0:00:03]}  f6 {[%clk 0:00:07]} 45. Bxf6 {[%clk 0:00:03]}  Bg8 {[%clk 0:00:08]} 46. Rb7+ {[%clk 0:00:04]}  Kh6 {[%clk 0:00:06]} 47. Bg7+ {[%clk 0:00:04]}  Kg5 {[%clk 0:00:05]} 48. Rxb5+ {[%clk 0:00:04]}  Kh4 {[%clk 0:00:03]} 49. Kg2 {[%clk 0:00:04]}  Bc4 {[%clk 0:00:01]} 50. Bf6+ {[%clk 0:00:04]}  Bg5 {[%clk 0:00:01]} 51. Bxg5# {[%clk 0:00:05]} 1-0


[Site "https://www.chess.com"]

[Event "Titled Tuesday Blitz August 22 Early 2023"]
[White "Bortnyk, Olexandr"]
[Black "Lenderman, Aleksandr"]
[WhiteFideId "14120828"]
[BlackFideId "2021285"]
[WhiteElo "3048"]
[BlackElo "2855"]
[Result "1-0"]
[Round "10"]
[TimeControl "180+1"]
[Date "2023.08.22"]
[WhiteClock "0:01:11"]
[BlackClock "0:02:08"]
[Board "16"]

1. d4 {[%clk 0:02:52]}  d5 {[%clk 0:02:59]} 2. Nc3 {[%clk 0:02:53]}  Nf6 {[%clk 0:02:58]} 3. Bf4 {[%clk 0:02:54]}  Bf5 {[%clk 0:02:58]} 4. e3 {[%clk 0:02:54]}  e6 {[%clk 0:02:57]} 5. Nf3 {[%clk 0:02:55]}  Bd6 {[%clk 0:02:57]} 6. Bd3 {[%clk 0:02:55]}  Bxd3 {[%clk 0:02:56]} 7. Qxd3 {[%clk 0:02:54]}  Bxf4 {[%clk 0:02:57]} 8. exf4 {[%clk 0:02:55]}  O-O {[%clk 0:02:57]} 9. O-O {[%clk 0:02:56]}  c6 {[%clk 0:02:56]} 10. Rfe1 {[%clk 0:02:55]}  Na6 {[%clk 0:02:55]} 11. Ne5 {[%clk 0:02:48]}  Nc7 {[%clk 0:02:55]} 12. Re3 {[%clk 0:02:47]}  Nce8 {[%clk 0:02:54]} 13. f5 {[%clk 0:02:46]}  exf5 {[%clk 0:02:54]} 14. Qxf5 {[%clk 0:02:47]}  Nd6 {[%clk 0:02:54]} 15. Qf4 {[%clk 0:02:46]}  Nfe4 {[%clk 0:02:54]} 16. Nxe4 {[%clk 0:02:41]}  Nxe4 {[%clk 0:02:55]} 17. f3 {[%clk 0:02:41]}  Nd6 {[%clk 0:02:53]} 18. Rae1 {[%clk 0:02:41]}  Qc7 {[%clk 0:02:43]} 19. h4 {[%clk 0:02:35]}  Rae8 {[%clk 0:02:43]} 20. h5 {[%clk 0:02:31]}  Re6 {[%clk 0:02:36]} 21. Ng4 {[%clk 0:02:25]}  Qe7 {[%clk 0:02:32]} 22. h6 {[%clk 0:02:20]}  g5 {[%clk 0:02:29]} 23. Rxe6 {[%clk 0:01:52]}  fxe6 {[%clk 0:02:30]} 24. Qe5 {[%clk 0:01:52]}  Nf5 {[%clk 0:02:30]} 25. c3 {[%clk 0:01:43]}  Kf7 {[%clk 0:02:19]} 26. Qh2 {[%clk 0:01:34]}  Rg8 {[%clk 0:02:16]} 27. a4 {[%clk 0:01:29]}  Qd6 {[%clk 0:02:12]} 28. Qh5+ {[%clk 0:01:25]}  Ke7 {[%clk 0:02:12]} 29. Ne5 {[%clk 0:01:23]}  Rf8 {[%clk 0:02:12]} 30. Qxg5+ {[%clk 0:01:22]}  Ke8 {[%clk 0:02:13]} 31. Qh5+ {[%clk 0:01:12]}  Ke7 {[%clk 0:02:08]} 32. g4 {[%clk 0:01:11]} 1-0


[Site "https://www.chess.com"]

[Event "Titled Tuesday Blitz August 22 Early 2023"]
[White "Galchenko, Matvey"]
[Black "Sadhwani, Raunak"]
[WhiteFideId "24175480"]
[BlackFideId "35093487"]
[WhiteElo "2848"]
[BlackElo "3026"]
[Result "1-0"]
[Round "10"]
[TimeControl "180+1"]
[Date "2023.08.22"]
[WhiteClock "0:00:08"]
[BlackClock "0:00:22"]
[Board "18"]

1. e4 {[%clk 0:03:00]}  g6 {[%clk 0:02:47]} 2. d4 {[%clk 0:02:59]}  Bg7 {[%clk 0:02:48]} 3. Nc3 {[%clk 0:02:59]}  d6 {[%clk 0:02:48]} 4. Nf3 {[%clk 0:02:53]}  Nf6 {[%clk 0:02:47]} 5. h3 {[%clk 0:02:50]}  a6 {[%clk 0:02:48]} 6. Be3 {[%clk 0:02:48]}  O-O {[%clk 0:02:44]} 7. Bd3 {[%clk 0:02:47]}  b6 {[%clk 0:02:40]} 8. O-O {[%clk 0:02:22]}  Bb7 {[%clk 0:02:39]} 9. Re1 {[%clk 0:02:22]}  e6 {[%clk 0:02:33]} 10. Qd2 {[%clk 0:02:16]}  Nbd7 {[%clk 0:02:32]} 11. Bg5 {[%clk 0:02:16]}  e5 {[%clk 0:02:30]} 12. dxe5 {[%clk 0:02:11]}  dxe5 {[%clk 0:02:28]} 13. Nd5 {[%clk 0:02:05]}  c6 {[%clk 0:02:21]} 14. Ne3 {[%clk 0:01:31]}  Qc7 {[%clk 0:02:19]} 15. Qc3 {[%clk 0:01:25]}  Nc5 {[%clk 0:02:15]} 16. Nc4 {[%clk 0:01:20]}  Nh5 {[%clk 0:02:10]} 17. Nxb6 {[%clk 0:01:07]}  Qxb6 {[%clk 0:02:05]} 18. Be3 {[%clk 0:01:07]}  Nxe4 {[%clk 0:02:02]} 19. Bxe4 {[%clk 0:00:59]}  Qc7 {[%clk 0:02:02]} 20. Qb3 {[%clk 0:00:48]}  Kh8 {[%clk 0:01:58]} 21. Bc5 {[%clk 0:00:47]}  f5 {[%clk 0:01:40]} 22. Ng5 {[%clk 0:00:29]}  Rf6 {[%clk 0:01:33]} 23. Bf3 {[%clk 0:00:19]}  Re8 {[%clk 0:01:20]} 24. Bxh5 {[%clk 0:00:19]}  gxh5 {[%clk 0:01:19]} 25. Rad1 {[%clk 0:00:13]}  h6 {[%clk 0:01:06]} 26. Qf3 {[%clk 0:00:07]}  Kg8 {[%clk 0:00:43]} 27. Qxh5 {[%clk 0:00:06]}  Rd8 {[%clk 0:00:36]} 28. Rxd8+ {[%clk 0:00:07]}  Qxd8 {[%clk 0:00:37]} 29. Rd1 {[%clk 0:00:08]}  Qc8 {[%clk 0:00:22]} 30. Be7 {[%clk 0:00:08]} 1-0


[Site "https://www.chess.com"]

[Event "Titled Tuesday Blitz August 22 Early 2023"]
[White "Bachmann, Axel"]
[Black "Materia, Marco"]
[WhiteFideId "3700488"]
[BlackFideId "45150451"]
[WhiteElo "2862"]
[BlackElo "2802"]
[Result "1-0"]
[Round "10"]
[TimeControl "180+1"]
[Date "2023.08.22"]
[WhiteClock "0:00:09"]
[BlackClock "0:00:01"]
[Board "22"]

1. e4 {[%clk 0:03:00]}  c5 {[%clk 0:02:59]} 2. Nf3 {[%clk 0:02:56]}  e6 {[%clk 0:02:59]} 3. d4 {[%clk 0:02:54]}  cxd4 {[%clk 0:02:59]} 4. Nxd4 {[%clk 0:02:55]}  Nc6 {[%clk 0:03:00]} 5. Nc3 {[%clk 0:02:55]}  Qc7 {[%clk 0:03:00]} 6. Qd3 {[%clk 0:02:53]}  Nf6 {[%clk 0:02:58]} 7. Ndb5 {[%clk 0:02:51]}  Qb8 {[%clk 0:02:58]} 8. Qg3 {[%clk 0:02:52]}  d6 {[%clk 0:02:58]} 9. Be3 {[%clk 0:02:52]}  a6 {[%clk 0:02:57]} 10. Nd4 {[%clk 0:02:52]}  h5 {[%clk 0:02:55]} 11. f3 {[%clk 0:02:46]}  h4 {[%clk 0:02:48]} 12. Qf2 {[%clk 0:02:44]}  Bd7 {[%clk 0:02:47]} 13. O-O-O {[%clk 0:02:43]}  Be7 {[%clk 0:02:44]} 14. Kb1 {[%clk 0:02:40]}  b5 {[%clk 0:02:40]} 15. Nxc6 {[%clk 0:02:36]}  Bxc6 {[%clk 0:02:40]} 16. Bd3 {[%clk 0:02:36]}  d5 {[%clk 0:02:35]} 17. Bc5 {[%clk 0:02:26]}  Qc7 {[%clk 0:02:19]} 18. Bxe7 {[%clk 0:02:15]}  Qxe7 {[%clk 0:02:20]} 19. exd5 {[%clk 0:02:05]}  Nxd5 {[%clk 0:02:18]} 20. Nxd5 {[%clk 0:01:51]}  Bxd5 {[%clk 0:02:18]} 21. Rhe1 {[%clk 0:01:52]}  h3 {[%clk 0:01:58]} 22. g4 {[%clk 0:01:49]}  Kf8 {[%clk 0:01:43]} 23. f4 {[%clk 0:01:36]}  Qh4 {[%clk 0:01:41]} 24. Qe2 {[%clk 0:01:34]}  Bg2 {[%clk 0:01:01]} 25. Be4 {[%clk 0:01:11]}  Bxe4 {[%clk 0:01:00]} 26. Qxe4 {[%clk 0:01:11]}  Rd8 {[%clk 0:00:52]} 27. g5 {[%clk 0:01:07]}  Re8 {[%clk 0:00:36]} 28. Rd7 {[%clk 0:01:00]}  Qf2 {[%clk 0:00:31]} 29. Red1 {[%clk 0:00:44]}  Rh4 {[%clk 0:00:17]} 30. g6 {[%clk 0:00:31]}  Rxf4 {[%clk 0:00:16]} 31. Qe5 {[%clk 0:00:23]}  Rf5 {[%clk 0:00:13]} 32. Qd6+ {[%clk 0:00:22]}  Kg8 {[%clk 0:00:13]} 33. Rd8 {[%clk 0:00:22]}  fxg6 {[%clk 0:00:06]} 34. Rxe8+ {[%clk 0:00:22]}  Kh7 {[%clk 0:00:06]} 35. Qxe6 {[%clk 0:00:21]}  Qxh2 {[%clk 0:00:05]} 36. Qg8+ {[%clk 0:00:19]}  Kh6 {[%clk 0:00:06]} 37. Qh8+ {[%clk 0:00:16]}  Kg5 {[%clk 0:00:06]} 38. Qxg7 {[%clk 0:00:16]}  Qf2 {[%clk 0:00:02]} 39. Rh8 {[%clk 0:00:15]}  h2 {[%clk 0:00:02]} 40. Qh6+ {[%clk 0:00:15]}  Kf6 {[%clk 0:00:03]} 41. Qxh2 {[%clk 0:00:13]}  Qd4 {[%clk 0:00:02]} 42. Qd6+ {[%clk 0:00:11]}  Qxd6 {[%clk 0:00:01]} 43. Rxd6+ {[%clk 0:00:12]}  Kg7 {[%clk 0:00:02]} 44. Rh1 {[%clk 0:00:11]}  g5 {[%clk 0:00:01]} 45. Rxa6 {[%clk 0:00:10]}  g4 {[%clk 0:00:02]} 46. Rg1 {[%clk 0:00:11]}  Rg5 {[%clk 0:00:02]} 47. b4 {[%clk 0:00:10]}  g3 {[%clk 0:00:03]} 48. Ra3 {[%clk 0:00:08]}  g2 {[%clk 0:00:03]} 49. Rf3 {[%clk 0:00:09]}  Rg4 {[%clk 0:00:01]} 50. a3 {[%clk 0:00:09]} 1-0


[Site "https://www.chess.com"]

[Event "Titled Tuesday Blitz August 22 Early 2023"]
[White "Naroditsky, Daniel"]
[Black "Matinian, Nikita"]
[WhiteFideId "2026961"]
[BlackFideId "24129100"]
[WhiteElo "3168"]
[BlackElo "2711"]
[Result "1-0"]
[Round "10"]
[TimeControl "180+1"]
[Date "2023.08.22"]
[WhiteClock "0:00:03"]
[BlackClock "0:00:00"]
[Board "24"]

1. e4 {[%clk 0:03:00]}  c5 {[%clk 0:02:57]} 2. c3 {[%clk 0:03:01]}  d5 {[%clk 0:02:55]} 3. exd5 {[%clk 0:03:02]}  Qxd5 {[%clk 0:02:55]} 4. d4 {[%clk 0:03:02]}  Nf6 {[%clk 0:02:55]} 5. Nf3 {[%clk 0:03:03]}  e6 {[%clk 0:02:56]} 6. Na3 {[%clk 0:03:03]}  Be7 {[%clk 0:02:54]} 7. Be3 {[%clk 0:02:57]}  cxd4 {[%clk 0:02:52]} 8. Nb5 {[%clk 0:02:58]}  Qd8 {[%clk 0:02:50]} 9. Nbxd4 {[%clk 0:02:56]}  O-O {[%clk 0:02:50]} 10. Bd3 {[%clk 0:02:52]}  b6 {[%clk 0:02:50]} 11. Qe2 {[%clk 0:02:51]}  Bb7 {[%clk 0:02:49]} 12. O-O-O {[%clk 0:02:51]}  Nbd7 {[%clk 0:02:49]} 13. Kb1 {[%clk 0:02:47]}  a6 {[%clk 0:02:37]} 14. Bc2 {[%clk 0:02:24]}  Qc7 {[%clk 0:02:37]} 15. Ng5 {[%clk 0:02:21]}  h6 {[%clk 0:02:26]} 16. h4 {[%clk 0:02:22]}  Nc5 {[%clk 0:02:20]} 17. Rh3 {[%clk 0:02:16]}  Rfd8 {[%clk 0:02:16]} 18. Rg3 {[%clk 0:02:13]}  hxg5 {[%clk 0:02:13]} 19. hxg5 {[%clk 0:02:13]}  Nfe4 {[%clk 0:01:59]} 20. Rh3 {[%clk 0:02:13]}  Bd6 {[%clk 0:00:59]} 21. Qh5 {[%clk 0:01:44]}  Kf8 {[%clk 0:00:59]} 22. f3 {[%clk 0:01:44]}  Ng3 {[%clk 0:00:39]} 23. Qh7 {[%clk 0:01:40]}  Be5 {[%clk 0:00:33]} 24. f4 {[%clk 0:01:28]}  Bxf4 {[%clk 0:00:30]} 25. Rxg3 {[%clk 0:01:11]}  Bxg3 {[%clk 0:00:30]} 26. Rf1 {[%clk 0:01:11]}  Qe5 {[%clk 0:00:20]} 27. g6 {[%clk 0:01:07]}  Rd7 {[%clk 0:00:13]} 28. b4 {[%clk 0:00:24]}  Ne4 {[%clk 0:00:11]} 29. Kb2 {[%clk 0:00:13]}  Rc8 {[%clk 0:00:10]} 30. Bh6 {[%clk 0:00:03]}  Nxc3 {[%clk 0:00:06]} 31. Bxg7+ {[%clk 0:00:04]}  Qxg7 {[%clk 0:00:01]} 32. Nxe6+ {[%clk 0:00:04]}  Ke7 {[%clk 0:00:01]} 33. Nxg7 {[%clk 0:00:02]}  Be5 {[%clk 0:00:01]} 34. Rxf7+ {[%clk 0:00:03]}  Kd6 {[%clk 0:00:00]} 35. Nf5+ {[%clk 0:00:03]} 1-0


[Site "https://www.chess.com"]

[Event "Titled Tuesday Blitz August 22 Early 2023"]
[White "So, Wesley"]
[Black "Volovich, Vasily"]
[WhiteFideId "5202213"]
[BlackFideId "34169676"]
[WhiteElo "3086"]
[BlackElo "2711"]
[Result "1-0"]
[Round "10"]
[TimeControl "180+1"]
[Date "2023.08.22"]
[WhiteClock "0:00:52"]
[BlackClock "0:00:04"]
[Board "25"]

1. Nf3 {[%clk 0:02:53]}  Nf6 {[%clk 0:03:00]} 2. b3 {[%clk 0:02:52]}  d5 {[%clk 0:02:57]} 3. Bb2 {[%clk 0:02:53]}  c5 {[%clk 0:02:57]} 4. e3 {[%clk 0:02:50]}  Nc6 {[%clk 0:02:58]} 5. Bb5 {[%clk 0:02:48]}  Bd7 {[%clk 0:02:55]} 6. O-O {[%clk 0:02:44]}  e6 {[%clk 0:02:55]} 7. c4 {[%clk 0:02:43]}  Bd6 {[%clk 0:02:54]} 8. cxd5 {[%clk 0:02:40]}  exd5 {[%clk 0:02:54]} 9. d4 {[%clk 0:02:40]}  a6 {[%clk 0:02:50]} 10. Bxc6 {[%clk 0:02:40]}  bxc6 {[%clk 0:02:50]} 11. Ba3 {[%clk 0:02:27]}  Qe7 {[%clk 0:02:46]} 12. Nc3 {[%clk 0:02:21]}  O-O {[%clk 0:02:42]} 13. dxc5 {[%clk 0:02:15]}  Bxc5 {[%clk 0:02:41]} 14. Bxc5 {[%clk 0:02:16]}  Qxc5 {[%clk 0:02:41]} 15. Na4 {[%clk 0:02:09]}  Qd6 {[%clk 0:02:41]} 16. Qd4 {[%clk 0:02:08]}  Rfe8 {[%clk 0:02:36]} 17. Rac1 {[%clk 0:02:06]}  Re4 {[%clk 0:02:31]} 18. Qc5 {[%clk 0:02:04]}  Qc7 {[%clk 0:02:12]} 19. Nb6 {[%clk 0:01:57]}  Rae8 {[%clk 0:01:38]} 20. Nxd5 {[%clk 0:01:49]}  Nxd5 {[%clk 0:01:29]} 21. Qxd5 {[%clk 0:01:47]}  Qxh2+ {[%clk 0:01:27]} 22. Kxh2 {[%clk 0:01:45]}  cxd5 {[%clk 0:01:28]} 23. Rc7 {[%clk 0:01:43]}  Bb5 {[%clk 0:01:20]} 24. Rd1 {[%clk 0:01:41]}  Be2 {[%clk 0:01:15]} 25. Rxd5 {[%clk 0:01:40]}  Bxf3 {[%clk 0:01:16]} 26. gxf3 {[%clk 0:01:41]}  R4e6 {[%clk 0:01:16]} 27. Rdd7 {[%clk 0:01:35]}  Rf6 {[%clk 0:01:14]} 28. Kg2 {[%clk 0:01:34]}  h5 {[%clk 0:01:08]} 29. Rd5 {[%clk 0:01:32]}  g6 {[%clk 0:01:00]} 30. f4 {[%clk 0:01:33]}  Kg7 {[%clk 0:00:56]} 31. b4 {[%clk 0:01:29]}  Re4 {[%clk 0:00:55]} 32. a3 {[%clk 0:01:29]}  Ree6 {[%clk 0:00:53]} 33. Kf3 {[%clk 0:01:25]}  Rc6 {[%clk 0:00:48]} 34. Rc5 {[%clk 0:01:24]}  Rxc7 {[%clk 0:00:44]} 35. Rxc7 {[%clk 0:01:25]}  Rd6 {[%clk 0:00:44]} 36. a4 {[%clk 0:01:23]}  Rb6 {[%clk 0:00:43]} 37. Rc4 {[%clk 0:01:22]}  Kf6 {[%clk 0:00:42]} 38. a5 {[%clk 0:01:19]}  Rb5 {[%clk 0:00:34]} 39. Rc6+ {[%clk 0:01:19]}  Ke7 {[%clk 0:00:30]} 40. Rc7+ {[%clk 0:01:12]}  Ke6 {[%clk 0:00:29]} 41. Rc6+ {[%clk 0:01:12]}  Ke7 {[%clk 0:00:29]} 42. Rc4 {[%clk 0:01:12]}  Ke6 {[%clk 0:00:24]} 43. e4 {[%clk 0:01:12]}  Kd6 {[%clk 0:00:22]} 44. Kg3 {[%clk 0:01:11]}  Rb8 {[%clk 0:00:20]} 45. f3 {[%clk 0:01:11]}  Rb5 {[%clk 0:00:19]} 46. Rd4+ {[%clk 0:01:09]}  Ke6 {[%clk 0:00:20]} 47. Kh4 {[%clk 0:01:08]}  f6 {[%clk 0:00:19]} 48. Rc4 {[%clk 0:01:08]}  Kd6 {[%clk 0:00:17]} 49. Kg3 {[%clk 0:01:06]}  Rb8 {[%clk 0:00:16]} 50. Rd4+ {[%clk 0:01:05]}  Ke6 {[%clk 0:00:17]} 51. Rc4 {[%clk 0:01:03]}  Kd6 {[%clk 0:00:16]} 52. Kh3 {[%clk 0:01:02]}  Rb5 {[%clk 0:00:16]} 53. Kh4 {[%clk 0:01:02]}  Rb8 {[%clk 0:00:16]} 54. f5 {[%clk 0:01:00]}  gxf5 {[%clk 0:00:16]} 55. exf5 {[%clk 0:01:01]}  Ke5 {[%clk 0:00:16]} 56. Kxh5 {[%clk 0:00:57]}  Kxf5 {[%clk 0:00:16]} 57. Kh4 {[%clk 0:00:57]}  Ke5 {[%clk 0:00:14]} 58. Kg4 {[%clk 0:00:54]}  Rg8+ {[%clk 0:00:12]} 59. Kh3 {[%clk 0:00:55]}  Rb8 {[%clk 0:00:11]} 60. Kg3 {[%clk 0:00:55]}  Kd5 {[%clk 0:00:11]} 61. Rc5+ {[%clk 0:00:53]}  Kd4 {[%clk 0:00:09]} 62. Rc6 {[%clk 0:00:53]}  Rxb4 {[%clk 0:00:09]} 63. Rxf6 {[%clk 0:00:53]}  Ra4 {[%clk 0:00:04]} 64. Rf4+ {[%clk 0:00:52]} 1-0


[Site "https://www.chess.com"]

[Event "Titled Tuesday Blitz August 22 Early 2023"]
[White "KarolKacprzak"]
[Black "Grischuk, Alexander"]
[BlackFideId "4126025"]
[WhiteElo "2705"]
[BlackElo "3017"]
[Result "0-1"]
[Round "10"]
[TimeControl "180+1"]
[Date "2023.08.22"]
[WhiteClock "0:00:23"]
[BlackClock "0:00:24"]
[Board "26"]

1. e4 {[%clk 0:03:00]}  e5 {[%clk 0:02:56]} 2. Nf3 {[%clk 0:03:00]}  Nc6 {[%clk 0:02:57]} 3. Bb5 {[%clk 0:03:01]}  a6 {[%clk 0:02:54]} 4. Ba4 {[%clk 0:03:01]}  Bc5 {[%clk 0:02:52]} 5. c3 {[%clk 0:03:00]}  Nge7 {[%clk 0:02:52]} 6. d4 {[%clk 0:02:53]}  exd4 {[%clk 0:02:53]} 7. cxd4 {[%clk 0:02:53]}  Bb4+ {[%clk 0:02:53]} 8. Nc3 {[%clk 0:02:53]}  d5 {[%clk 0:02:53]} 9. exd5 {[%clk 0:02:40]}  Nxd5 {[%clk 0:02:02]} 10. Bd2 {[%clk 0:02:35]}  O-O {[%clk 0:02:00]} 11. O-O {[%clk 0:02:35]}  Nce7 {[%clk 0:01:40]} 12. h3 {[%clk 0:02:34]}  c6 {[%clk 0:01:32]} 13. Re1 {[%clk 0:02:33]}  Bf5 {[%clk 0:01:29]} 14. Bb3 {[%clk 0:02:25]}  a5 {[%clk 0:01:22]} 15. Ne4 {[%clk 0:02:15]}  Bxd2 {[%clk 0:01:18]} 16. Qxd2 {[%clk 0:02:16]}  a4 {[%clk 0:01:18]} 17. Bc4 {[%clk 0:02:04]}  h6 {[%clk 0:00:57]} 18. Rac1 {[%clk 0:02:00]}  Bxe4 {[%clk 0:00:51]} 19. Rxe4 {[%clk 0:02:01]}  Qd6 {[%clk 0:00:52]} 20. a3 {[%clk 0:01:55]}  Ng6 {[%clk 0:00:49]} 21. Rce1 {[%clk 0:01:49]}  Rad8 {[%clk 0:00:45]} 22. Ne5 {[%clk 0:01:31]}  Nf6 {[%clk 0:00:30]} 23. Nxf7 {[%clk 0:00:35]}  Rxf7 {[%clk 0:00:30]} 24. Re6 {[%clk 0:00:35]}  Qf4 {[%clk 0:00:25]} 25. Qxf4 {[%clk 0:00:30]}  Nxf4 {[%clk 0:00:25]} 26. Re7 {[%clk 0:00:23]}  N4d5 {[%clk 0:00:24]} 0-1


[Site "https://www.chess.com"]